Cogmind - Beta 12 @@@ ROGUE MODE // 2023.11.27 @ 00:34:30 Player: Mozco Result: Destroyed by X-82 Rainmaker with Heavy Flak Cannon Performance ------------- Evolutions (7) 3500 Regions Visited (23) 4600 Robots Destroyed (230) 1150 Value Destroyed (10143) 10143 Prototype IDs (41) 820 Alien Tech Used (2) 400 Bonus (3817) 3817 TOTAL SCORE: 24430 Bonus ------- High Alert Combat Kills 276 Follower Combat Kills 1941 Network Hubs Disabled 200 Aligned with FarCom 300 Met Data Miner 300 Met Zhirov 300 Met R17 at Cetus 500 Cogmind --------- Core Integrity 0/1300 Matter 285/300 Energy 100/100 System Corruption 41% Temperature Cool (0) Movement Core (50) Location -3/Armory Parts ------- > --- POWER (2) -------- (None) > --- PROPULSION (6) --- (None) > --- UTILITY (9) ------ (None) > --- WEAPON (4) ------- (None) > --- INVENTORY (5) ---- Medium Treads Armored Medium Treads Improved Melee Analysis Suite Improved Melee Analysis Suite Skeleton Box Peak State ------------ > --- POWER ------------ Reinforced Antimatter Reactor Particle Reactor > --- PROPULSION ------- Enhanced Biometal Leg Enhanced Biometal Leg Enhanced Biometal Leg Enhanced Biometal Leg Enhanced Biometal Leg Enhanced Biometal Leg > --- UTILITY ---------- Large Storage Unit Machine Analyzer Advanced Actuator Array Phase Shifter Improved Propulsion Shielding Backup Plating III Experimental Thermal Shield System Shield System Shield > --- WEAPON ----------- Thunder Hammer Thunder Hammer Plasma Sword Lance > --- INVENTORY -------- Medium Treads Medium Treads Medium Treads Medium Treads Medium Treads Armored Medium Treads Advanced Medium Treads Biometal Medium Treads Myomer Leg Skeleton Box Improved Proton Missile Launcher Fusion Bomb Launcher Thunder Hammer Thunder Hammer Heavy Pick [Rating: 141] Favorites ----------- Power Particle Reactor Engine Improved Ion Engine Power Core Fission Core Reactor Particle Reactor Propulsion Medium Treads Treads Medium Treads Leg Flexi-carbon Leg Wheel Armored Huge Wheel Flight Unit Biomechanical Wings Utility Large Storage Unit Device Actuator Array Storage Large Storage Unit Processor Improved Melee Analysis Suite Hackware System Shield Protection Centrium Medium Armor Plating Weapon Thunder Hammer Energy Gun Heavy EM Pulse Gun Energy Cannon Improved EM Pulse Cannon Ballistic Gun Gauss Rifle Launcher Improved Proton Missile Launcher Impact Weapon Thunder Hammer Slashing Weapon Axe Piercing Weapon Heavy Pick Build | -11 -10 -10 -10 -9 -8 -7 -7 -7 -7 -6 -6 -5 -5 -5 -5 -5 -4 -4 -4 -4 -3 -3 -3 ------- Run | Jun Mat Min Exi Min Mat Fac Low Low Dat Pro Fac Fac Ext Cet Arc Hub Fac Upp Upp Zhi Pro Res Arm Slots Evolved 14 | . . . . . 4 2 . . . . 2 2 . . . . 2 . . . . 2 . Power 1 | . . . . . . . . . . . . 1 . . . . . . . . . . . Propulsion 4 | . . . . . 2 1 . . . . . . . . . . . . . . . 1 . Utility 7 | . . . . . 2 1 . . . . 1 1 . . . . 1 . . . . 1 . Weapon 2 | . . . . . . . . . . . 1 . . . . . 1 . . . . . . Parts Attached 377 | 8 8 1 9 6 19 17 4 2 . 6 56 3 37 13 28 16 15 6 15 10 2 36 60 Power 50 | 1 1 . 1 1 4 2 . . . . 6 1 4 4 2 3 3 . 1 2 . 6 8 Engine 7 | 1 1 . 1 . 1 . . . . . 1 . . . . 2 . . . . . . . Core 19 | . . . . 1 3 2 . . . . 5 1 4 . 1 1 . . . . . . 1 Reactor 24 | . . . . . . . . . . . . . . 4 1 . 3 . 1 2 . 6 7 Propulsion 110 | 2 2 . . 2 5 9 . . . 1 16 . 15 2 8 3 1 2 5 1 2 18 16 Treads 28 | . . . . . 2 4 . . . . . . 2 . 3 3 1 2 1 . . 3 7 Leg 72 | . 2 . . 2 3 1 . . . 1 14 . 13 2 5 . . . 3 . 2 15 9 Wheel 9 | 2 . . . . . 4 . . . . 1 . . . . . . . 1 1 . . . Hover . | . . . . . . . . . . . . . . . . . . . . . . . . Flight 1 | . . . . . . . . . . . 1 . . . . . . . . . . . . Utility 148 | 3 1 1 6 2 4 3 3 . . 1 31 2 8 5 12 6 8 4 6 5 . 11 26 Device 59 | 2 . . 4 1 1 1 1 . . . 11 1 3 1 9 3 6 2 1 1 . 5 6 Storage 7 | 1 1 . 1 . . . . . . . 1 . . . . 1 . . . 1 . . 1 Processor 12 | . . . . . 1 1 . . . . 2 . 1 . 1 . . . . 1 . . 5 Hackware 11 | . . . . . . 1 . . . . 3 . . 1 . 1 1 . . . . 1 3 Protection 59 | . . 1 1 1 2 . 2 . . 1 14 1 4 3 2 1 1 2 5 2 . 5 11 Artifact . | . . . . . . . . . . . . . . . . . . . . . . . . Weapon 69 | 2 4 . 2 1 6 3 1 2 . 4 3 . 10 2 6 4 3 . 3 2 . 1 10 Energy Gun 8 | 1 3 . 1 . 2 . . . . . . . 1 . . . . . . . . . . Energy Cannon 2 | . . . . . . 2 . . . . . . . . . . . . . . . . . Ballistic Gun 2 | 1 . . . . 1 . . . . . . . . . . . . . . . . . . Ballistic Cannon . | . . . . . . . . . . . . . . . . . . . . . . . . Launcher 11 | . 1 . . 1 2 . . 1 . 2 . . 1 1 . 1 . . 1 . . . . Special Weapon . | . . . . . . . . . . . . . . . . . . . . . . . . Impact Weapon 22 | . . . . . . 1 1 . . 1 3 . 1 . 2 3 2 . 1 1 . . 6 Slashing Weapon 13 | . . . 1 . 1 . . 1 . 1 . . 6 . 2 . . . . . . 1 . Piercing Weapon 11 | . . . . . . . . . . . . . 1 1 2 . 1 . 1 1 . . 4 Special Melee Weapon . | . . . . . . . . . . . . . . . . . . . . . . . . Unidentified Prototypes 18 | . . . 4 . . 1 . . . . 2 . . 1 . 1 1 . . 6 . 2 . Corrupted Parts 16 | . 1 . . 1 . . . . . . 1 . 1 2 2 2 . . 3 . 2 . 1 System Corruption 103 | . 1 . . 4 . . . . . . 2 . 12 14 8 13 . . 24 . 17 . 8 Parts Lost 106 | . . 1 . 1 9 1 . . . . 5 1 5 2 10 2 1 1 9 . . 17 41 Power 14 | . . . . . 1 . . . . . 2 . . . 2 1 . . 1 . . 2 5 Propulsion 37 | . . . . . 4 1 . . . . 1 . 3 . 5 . . 1 5 . . 3 14 Utility 41 | . . 1 . 1 2 . . . . . 2 1 1 2 1 1 1 . 3 . . 9 16 Weapon 14 | . . . . . 2 . . . . . . . 1 . 2 . . . . . . 3 6 Highest Loss Streak 14 | . . 1 . 1 5 1 . . . . 3 1 3 1 10 1 1 1 7 . . 12 14 To Critical Strikes 2 | . . . . . . . . . . . . . . . . . . . . . . . 2 Average Slot Usage (%) 91 | . 100 96 97 95 82 85 84 84 84 84 92 90 92 99 91 92 92 97 95 93 100 90 82 Engine 2 | . 14 14 14 7 1 6 . . . . . . . . . 2 . . . . . . . Core 2 | . . . . 6 6 . 7 7 7 7 5 9 11 1 4 1 . . . . . . . Reactor 4 | . . . . . . . . . . . . . . 9 4 5 9 10 9 10 10 8 7 Treads 7 | . . . . . 13 11 . . . . . . 3 . 9 22 25 25 17 . . . 6 Leg 14 | . 20 28 28 28 16 6 . . . 2 20 17 13 29 17 5 . . 3 15 15 26 17 Wheel 3 | . 7 . . . . 5 23 23 23 20 5 5 3 . . . . . 1 6 9 . . Device 8 | . 14 7 2 1 7 6 7 7 7 7 9 16 9 9 7 1 7 15 13 10 10 15 7 Storage 6 | . 14 14 14 14 9 7 7 7 7 7 6 5 5 5 5 5 5 5 5 5 5 4 4 Processor 8 | . . . . . 8 7 7 7 7 5 8 5 11 11 12 13 10 10 10 11 15 8 7 Hackware 3 | . . . . . . 6 7 7 7 7 5 . . . 5 7 4 . . . . . 8 Protection 7 | . . 3 10 8 5 7 6 7 7 8 7 9 10 10 4 5 7 8 11 12 10 7 3 Energy Gun 3 | . 23 28 26 22 1 . . . . . . . . . . . . . . . . . . Impact Weapon 8 | . . . . . . . 7 7 7 6 18 17 10 . 1 10 14 15 13 8 5 1 10 Slashing Weapon 2 | . . . . . 7 7 7 6 7 6 1 . 4 8 1 2 . . . . . 1 1 Piercing Weapon 3 | . . . . . . . . . . . . . 1 7 9 2 2 5 5 11 15 12 3 Naked Turns 3 | . . . . . . . . . . . . . . . . . . . . . . . 3 Heaviest Build 124 | 13 24 26 36 36 44 50 48 45 45 55 60 78 78 90 85 80 124 120 114 108 90 104 117 Greatest Support 180 | 26 26 20 20 23 46 60 56 72 72 72 77 28 90 90 98 140 140 140 135 26 110 180 180 Greatest Overweight (x) 19 | . 1 1 1 1 3 4 . . . 2 3 2 4 . 3 . . 1 7 6 3 2 19 Average Overweight (x) . | . . 1 . 1 . 1 . . . . . 1 1 . . . . . 1 5 2 . . Largest Inventory Capacity 20 | 8 10 10 15 15 15 15 15 15 15 15 15 15 15 15 15 15 15 15 15 15 15 15 20 Average Capacity 14 | 6 8 10 10 15 15 15 15 15 15 15 15 15 15 15 15 15 15 15 15 15 15 15 17 Most Carried 16 | 8 8 10 10 15 15 15 15 15 15 15 15 15 15 15 15 15 15 15 15 15 15 15 16 Average Carried 13 | 4 7 9 9 13 13 14 14 15 15 14 14 14 14 14 14 14 13 13 13 14 15 14 11 Final Capacity 15 | 8 10 10 15 15 15 15 15 15 15 15 15 15 15 15 15 15 15 15 15 15 15 15 5 Final Carried 15 | 7 8 10 10 14 15 15 15 15 15 15 15 15 15 15 15 15 15 14 14 15 15 15 5 Class Distribution -------------------- 41% | Scavenger-Mutant 38% | Mutant 8% | Hacker-Mutant 4% | Scavenger-Assassin 3% | Commander-Mutant 3% | Assassin Dominant Class ---------------- Mutant | -10/Materials Mutant | -10/Mines Mutant | -10/Exiles Mutant | -9/Mines Scavenger-Assassin | -8/Materials Assassin | -7/Factory Mutant | -7/Lower Caves Mutant | -7/Lower Caves Mutant | -7/Data Miner Mutant | -6/Proximity Caves Mutant | -6/Factory Mutant | -5/Factory Mutant | -5/Extension Scavenger-Mutant | -5/Cetus Scavenger-Mutant | -5/Archives Scavenger-Mutant | -5/Hub_04(d) Scavenger-Mutant | -4/Factory Scavenger-Mutant | -4/Upper Caves Scavenger-Mutant | -4/Upper Caves Scavenger-Mutant | -4/Zhirov Scavenger-Mutant | -3/Proximity Caves Scavenger-Mutant | -3/Research Hacker-Mutant | -3/Armory Resources | -11 -10 -10 -10 -9 -8 -7 -7 -7 -7 -6 -6 -5 -5 -5 -5 -5 -4 -4 -4 -4 -3 -3 -3 ----------- Run | Jun Mat Min Exi Min Mat Fac Low Low Dat Pro Fac Fac Ext Cet Arc Hub Fac Upp Upp Zhi Pro Res Arm Matter Collected 4370 | 274 110 33 . 179 209 166 62 70 . 100 359 194 442 167 284 177 196 61 164 143 60 303 617 Remotely 42 | 42 . . . . . . . . . . . . . . . . . . . . . . . Salvage Created 12778 | 158 214 274 . 229 737 398 222 306 . 126 1226 350 1054 362 332 638 1063 250 1034 409 154 1351 1891 Parts 418 | 11 20 19 . 17 35 18 6 10 . 3 25 7 44 14 29 18 23 7 15 6 3 45 43 Haulers Intercepted 12 | . 1 . . . 3 . . . . . 1 . 1 . . 2 2 . . . . 2 . Recyclers Shooed 4 | . . . . . 1 . . . . . 3 . . . . . . . . . . . . Parts Field Recycled . | . . . . . . . . . . . . . . . . . . . . . . . . Retrieved Matter . | . . . . . . . . . . . . . . . . . . . . . . . . Parts Self-Destructed 32 | . . . . . . . 3 5 . 6 . . . . . . . 2 12 3 1 . . Prevented 13 | . . . . . . . 1 1 . . . . . . . . . 2 7 1 1 . . Kills | -11 -10 -10 -10 -9 -8 -7 -7 -7 -7 -6 -6 -5 -5 -5 -5 -5 -4 -4 -4 -4 -3 -3 -3 ------- Run | Jun Mat Min Exi Min Mat Fac Low Low Dat Pro Fac Fac Ext Cet Arc Hub Fac Upp Upp Zhi Pro Res Arm Combat Hostiles Destroyed 158 | . 2 4 . 7 13 2 3 7 . 4 14 4 12 5 . 8 11 3 12 . 2 17 28 Melee 83 | . . . . . 5 2 2 . . 2 10 4 7 2 . 5 7 3 6 . 1 16 11 Guns 8 | . 1 3 . 4 . . . . . . . . . . . . . . . . . . . AOE 24 | . 1 1 . 3 8 . . 7 . 2 . . 1 . . . . . 1 . . . . Classes Destroyed 23 | 2 3 2 . 1 3 . . . . . 3 . . 1 . . 2 1 . . 2 1 2 Worker 4 | . . . . . . . . . . . 3 . . . . 1 . . . . . . . Builder 9 | . 4 2 . . . . . . . . 1 . 1 . . . . . . . . 1 . Tunneler 6 | 3 . 1 . 1 1 . . . . . . . . . . . . . . . . . . Hauler 12 | . 1 . . . 3 . . . . . 1 . 1 . . 2 2 . . . . 2 . Recycler 16 | 1 . 2 . . 2 4 . . . . 4 1 1 . . . 1 . . . . . . Minesweeper 2 | . . . . . . . . . . . . . . . . . . . . . 2 . . Mechanic 3 | . . . . . . . . . . . . . . . . . 1 . 1 . . . 1 Operator 14 | . . . . . . . . . . . 1 . 2 . 9 . 1 . . . . . 1 Drone 1 | . . . . . . . . . . . . . . . . . . . . . 1 . . Watcher 6 | . . . . . . . . . . . . . . 1 . 2 2 . . . . . 1 Swarmer 33 | . . 3 . 4 4 . . 3 . 1 5 . . 1 . 3 . 2 . . . 3 4 Cutter 1 | . . . . . . . . . . . . . . . . . . . . . . 1 . Saboteur 1 | . . . . . . . . . . . . . . . . . . . . . . . 1 Grunt 43 | . 2 . . 2 2 . 3 4 . 2 4 4 1 . . 2 2 . 6 . 1 8 . Brawler 3 | . . . . 1 . . . . . . . . . . . . . . 1 . . 1 . Duelist 3 | . . . . . . . . . . . . . . . . . 2 . 1 . . . . Sentry 27 | . . . . . 3 2 . . . 1 3 . 6 . . 1 . 1 2 . . 2 6 Demolisher 3 | . . 1 . . . . . . . . . . . . . . . . . . . . 2 Specialist 6 | . . . . . 2 . . . . . . . . . . . . . . . . 2 2 Hunter 17 | . . . . . 2 . . . . . . . 4 . . 2 . . 2 . . . 7 Programmer 14 | . . . . . . . . . . . 2 . 1 . . . 7 . . . . . 4 Heavy 2 | . . . . . . . . . . . . . . . . . . . . . . . 2 Cetus Guard 4 | . . . . . . . . . . . . . . 4 . . . . . . . . . Decomposer 1 | . . . . . . . . . . . . . . . . . . . . . 1 . . Samaritan 1 | . . . . . . . . . . . . . . . . . . 1 . . . . . Best Kill Streak 11 | 4 3 3 . 4 5 5 3 7 . 3 3 4 3 4 2 3 4 3 8 . 2 5 11 Combat Bots Only 10 | . 2 3 . 4 4 1 3 7 . 3 3 4 2 3 . 3 3 3 8 . 1 5 10 Max Kills in Single Turn 4 | 1 1 1 . 3 4 1 1 3 . 1 1 1 1 2 1 1 1 1 1 . 1 1 1 Gunslinging . | . . . . . . . . . . . . . . . . . . . . . . . . Exploded 4 | . 1 1 . 3 4 . . 3 . 1 . . 1 . . . . . 1 . . . . Melee 1 | . . . . . 1 1 1 . . 1 1 1 1 1 . 1 1 1 1 . 1 1 1 Uniques/NPCs Destroyed . | . . . . . . . . . . . . . . . . . . . . . . . . Combat | -11 -10 -10 -10 -9 -8 -7 -7 -7 -7 -6 -6 -5 -5 -5 -5 -5 -4 -4 -4 -4 -3 -3 -3 -------- Run | Jun Mat Min Exi Min Mat Fac Low Low Dat Pro Fac Fac Ext Cet Arc Hub Fac Upp Upp Zhi Pro Res Arm Damage Taken 24409 | . 59 108 . 154 1100 393 153 199 . 385 1391 241 1636 1191 1630 872 1490 55 1829 . 54 3792 7677 Core 2642 | . 15 43 . 22 246 55 25 55 . 19 133 . 201 50 160 80 64 . 172 . . 182 1120 Absorbed by Shields 766 | . . . . . . . . . . . . 42 31 . . . 16 64 552 . . . 61 Redirected to Shielding 330 | . . . . . . . . . . . . . . . . . . . . . . 10 320 Regen/Repaired (Parts) 1350 | . . . . . . 145 . . . . 69 47 301 103 12 . 559 . . . . . 114 Core Remaining (%) 72 | 100 . . . 68 55 . . . . 78 84 . . . . 50 . . . . 72 . . Volleys Fired 92 | 4 12 16 . 24 12 . . 5 . 2 . . 5 5 . 2 1 . 4 . . . . Largest 2 | 2 2 2 . 2 2 . . 1 . 2 . . 1 1 . 1 1 . 1 . . . . Hottest 90 | 60 90 90 . 90 90 . . 30 . 60 . . 43 43 . 43 43 . 43 . . . . Shots Fired 137 | 8 19 33 . 35 15 . . 5 . 4 . . 5 5 . 2 1 . 5 . . . . Gun 100 | 8 17 33 . 33 9 . . . . . . . . . . . . . . . . . . Cannon . | . . . . . . . . . . . . . . . . . . . . . . . . Launcher 37 | . 2 . . 2 6 . . 5 . 4 . . 5 5 . 2 1 . 5 . . . . Special . | . . . . . . . . . . . . . . . . . . . . . . . . Kinetic 7 | 4 . . . . 3 . . . . . . . . . . . . . . . . . . Thermal 4 | 4 . . . . . . . . . . . . . . . . . . . . . . . Explosive 19 | . 2 . . 2 6 . . 5 . 4 . . . . . . . . . . . . . Electromagnetic 107 | . 17 33 . 33 6 . . . . . . . 5 5 . 2 1 . 5 . . . . Robot Hit Streak 11 | 6 8 6 . 5 5 . . 2 . 1 . . 3 5 . . 6 . 11 . . . . Robot Miss Streak 4 | . 2 2 . 4 2 . . 2 . 2 . . 1 . . . . . . . . . . Penetration Max . | . . . . . . . . . . . . . . . . . . . . . . . . Secondary Targets 1 | . . 1 . . . . . . . . . . . . . . . . . . . . . Max Gunslinging Chain 1 | . . 1 . . . . . . . . . . . . . . . . . . . . . Shots Hit Robots 589 | 6 12 18 . 19 35 13 10 6 . 7 64 10 41 9 16 28 49 9 30 7 8 90 102 Core Hits 236 | 5 9 9 . 10 29 6 4 14 . 13 8 4 13 9 10 12 6 5 13 4 1 30 22 Critical Kills 11 | . . . . . . . . . . . 2 1 2 . . 1 2 2 . . . . 1 Critical Parts Destroyed 66 | . . . . . . . 1 . . . 11 1 4 . . 5 15 1 3 . 3 2 20 Critical Strikes 114 | . . . . 2 2 . 2 . . . 15 2 7 2 3 10 18 3 8 . 4 11 25 Corrupt 2 | . . . . 2 . . . . . . . . . . . . . . . . . . . Smash 80 | . . . . . . . 1 . . . 14 2 6 . . 6 18 3 3 . 3 2 22 Sever 14 | . . . . . 2 . 1 . . . 1 . 1 1 . 2 . . . . . 5 1 Impale 18 | . . . . . . . . . . . . . . 1 3 2 . . 5 . 1 4 2 Melee Attacks 739 | . . . . . 32 16 11 4 . 13 109 12 55 8 18 36 73 10 34 10 13 129 156 Impact 375 | . . . . . . . 2 1 . 5 98 12 36 . . 17 62 5 20 4 5 9 99 Slashing 166 | . . . . . 32 16 9 3 . 8 11 . 15 4 1 10 . . . . . 44 13 Piercing 198 | . . . . . . . . . . . . . 4 4 17 9 11 5 14 6 8 76 44 Sneak Attacks 74 | . . . . . 9 5 . . . . 14 1 7 . 11 2 9 1 . . 4 5 6 Combat Hostiles 12 | . . . . . 1 . . . . . 2 . 1 . . . 3 . . . . 1 4 Follow-up Attacks 209 | . . . . . . . 2 1 . 4 30 3 13 3 2 13 23 3 15 2 3 43 49 Damage Inflicted 30745 | 63 316 333 . 431 2130 614 458 1092 . 474 3759 608 2149 770 940 1372 3135 589 1632 720 622 3875 4663 Guns 947 | 63 197 288 . 292 107 . . . . . . . . . . . . . . . . . . Cannons . | . . . . . . . . . . . . . . . . . . . . . . . . Explosions 3244 | . 119 45 . 139 720 . . 778 . 232 . . 293 485 . 123 6 . 304 . . . . Melee 26472 | . . . . . 1303 614 458 314 . 242 3759 608 1833 285 940 1249 3129 589 1328 720 622 3816 4663 Ramming 82 | . . . . . . . . . . . . . 23 . . . . . . . . 59 . Kinetic 78 | 18 . . . . 60 . . . . . . . . . . . . . . . . . . Thermal 90 | 45 . 45 . . . . . . . . . . . . . . . . . . . . . Explosive 1988 | . 119 . . 139 720 . . 778 . 232 . . . . . . . . . . . . . Electromagnetic 2035 | . 197 288 . 292 47 . . . . . . . 293 485 . 123 6 . 304 . . . . Impact 15145 | . . . . . . . 145 120 . 89 3578 608 1266 . . 646 3018 166 799 462 350 453 3445 Slashing 5575 | . . . . . 1303 614 313 194 . 153 181 . 454 133 37 301 . . . . . 1532 360 Piercing 5752 | . . . . . . . . . . . . . 113 152 903 302 111 423 529 258 272 1831 858 Highest Corruption 41 | . 1 1 1 5 . . . . . . 3 . 12 22 22 8 6 6 24 24 33 23 41 Average Corruption 9 | . 1 1 1 2 . . . . . . 1 . 8 13 12 6 3 3 20 22 16 17 26 Corruption Purged 49 | . . . . . . . . . . . 3 . 4 . 30 6 . 6 . . . . . Corruption Blocked 12 | . . . . . . . . . . . . . . . . . . . . . . . 12 Effects 242 | . . 11 1 9 . . . . . . 15 . 23 11 15 9 20 1 11 15 10 9 82 Message Errors 55 | . . 2 . 3 . . . . . . 3 . 8 5 2 . 5 . 4 3 1 3 16 Matter Fused 67 | . . 3 1 2 . . . . . . 6 . 7 2 6 2 5 1 2 3 4 3 20 Heat Flow Errors 35 | . . . . 1 . . . . . . 1 . 4 2 2 1 5 . 2 4 . 1 12 Energy Discharges 28 | . . 3 . 1 . . . . . . 2 . 2 1 2 3 1 . 1 1 2 1 8 Parts Rejected 5 | . . . . 1 . . . . . . . . 1 . 1 . . . . . . . 2 Parts Fused 2 | . . . . . . . . . . . 1 . . . . . . . . 1 . . . Data Loss (minor) 25 | . . 1 . . . . . . . . 1 . 1 . . 3 4 . 1 2 1 1 10 Data Loss (major) 10 | . . 1 . . . . . . . . 1 . . . 2 . . . . . 1 . 5 Misfires 3 | . . 1 . 1 . . . . . . . . . . . . . . 1 . . . . Alerts 5 | . . . . . . . . . . . . . . . . . . . . 1 1 . 3 Misdirections 7 | . . . . . . . . . . . . . . 1 . . . . . . . . 6 Overload Shots . | . . . . . . . . . . . . . . . . . . . . . . . . Overflow Damage 7559 | . . . . . 220 98 105 118 . . 1427 131 460 . 121 331 1370 168 412 349 548 293 1408 Projectiles 24 | . . . . . . . . . . . 24 . . . . . . . . . . . . Explosions 15 | . . . . . 7 . . 8 . . . . . . . . . . . . . . . Melee 7520 | . . . . . 213 98 105 110 . . 1403 131 460 . 121 331 1370 168 412 349 548 293 1408 Knockbacks 61 | . . . . . . . 1 . . 1 14 . 6 . . 1 13 . 4 . 1 3 17 Impact 56 | . . . . . . . 1 . . 1 12 . 5 . . 1 13 . 4 . 1 3 15 Kinetic . | . . . . . . . . . . . . . . . . . . . . . . . . Secondary 5 | . . . . . . . . . . . 2 . 1 . . . . . . . . . 2 Self-Inflicted Damage 233 | . . . . . 30 . . 22 . . . . 32 . . 96 26 . 27 . . . . Shots 9 | . . . . . 2 . . 1 . . . . 3 . . 1 1 . 1 . . . . Rammed . | . . . . . . . . . . . . . . . . . . . . . . . . Targets Rammed 5 | . . . . . . . . . . . . . 2 . . . . . . . . 3 . Kicked 5 | . . . . . . . . . . . . . 2 . . . . . . . . 3 . Crushed . | . . . . . . . . . . . . . . . . . . . . . . . . Highest Temperature 288 | 20 132 132 . 196 15 . 5 12 . 35 99 . 178 165 241 280 288 . 255 282 . 67 251 Average Temperature 82 | 15 44 42 . 60 7 . 5 12 . 27 57 . 64 69 136 118 94 . 85 129 . 21 107 Received Heat Transfer 2820 | . 36 . . 69 288 132 126 54 . 81 261 39 300 99 270 108 39 . 387 . 9 378 144 Effects 1 | . . . . . . . . . . . . . . . . . 1 . . . . . . Energy Bleed 1 | . . . . . . . . . . . . . . . . . 1 . . . . . . Siege Activations . | . . . . . . . . . . . . . . . . . . . . . . . . Robots Corrupted 7 | . . . . . . . . . . . . . 2 3 . . . . 2 . . . . Combat Hostiles 7 | . . . . . . . . . . . . . 2 3 . . . . 2 . . . . Parts Fried 92 | . 3 1 . . . . . . . . 21 1 12 2 . 3 12 1 10 . 8 1 17 Impact Corruptions 200 | . . . . . . . 3 2 . . 48 2 17 . . 8 42 3 12 12 6 5 40 Robots Melted . | . . . . . . . . . . . . . . . . . . . . . . . . Combat Hostiles . | . . . . . . . . . . . . . . . . . . . . . . . . Parts Melted 3 | . . . . . . . . . . . . . . . . . . . . . . 3 . Heat Transferred 150 | 100 . 50 . . . . . . . . . . . . . . . . . . . . . Parts Sabotaged 11 | . . . . . . . . . . . . . . . . . . . . . . 3 8 Parts Stolen . | . . . . . . . . . . . . . . . . . . . . . . . . Parts Stripped . | . . . . . . . . . . . . . . . . . . . . . . . . Power Chain Reactions 2 | . . 1 . . . . . . . . . . 1 . . . . . . . . . . Missiles Intercepted . | . . . . . . . . . . . . . . . . . . . . . . . . Alert | -11 -10 -10 -10 -9 -8 -7 -7 -7 -7 -6 -6 -5 -5 -5 -5 -5 -4 -4 -4 -4 -3 -3 -3 ------- Run | Jun Mat Min Exi Min Mat Fac Low Low Dat Pro Fac Fac Ext Cet Arc Hub Fac Upp Upp Zhi Pro Res Arm Peak Influence 794 | 20 118 120 . 110 237 111 . . . . 373 286 654 794 419 445 216 . . . . 537 407 Initial 365 | . 13 45 . . 37 77 . . . . . 161 135 365 317 25 144 . . . . 300 181 Average 182 | 7 56 33 . 60 138 65 . . . . 187 244 256 551 283 146 101 . . . . 379 255 Maximum Alert Level 3 | . . . . . 1 . . . . . 1 1 2 3 2 2 1 . . . . 2 2 Low Security (%) 59 | 100 100 100 . 100 71 100 . . . . 65 31 40 . 9 79 90 . . . . . 18 Level 1 31 | . . . . . 28 . . . . . 34 68 43 12 74 7 9 . . . . 63 74 Level 2 7 | . . . . . . . . . . . . . 16 69 15 12 . . . . . 36 6 Level 3 . | . . . . . . . . . . . . . . 17 . . . . . . . . . Level 4 . | . . . . . . . . . . . . . . . . . . . . . . . . Level 5 . | . . . . . . . . . . . . . . . . . . . . . . . . High Security . | . . . . . . . . . . . . . . . . . . . . . . . . Max Security . | . . . . . . . . . . . . . . . . . . . . . . . . Squads Dispatched 48 | . . . . . 3 1 . . . . 13 1 4 . . 2 7 . 1 . . 8 8 Investigation 13 | . . . . . 1 . . . . . 4 1 . . . 1 2 . . . . 2 2 Extermination 11 | . . . . . . 1 . . . . 1 . . . . 1 5 . . . . 1 2 Reinforcement 13 | . . . . . 1 . . . . . 2 . 4 . . . . . . . . 2 4 Assault 3 | . . . . . . . . . . . . . . . . . . . 1 . . 2 . Garrison 8 | . . . . . 1 . . . . . 6 . . . . . . . . . . 1 . Intercept . | . . . . . . . . . . . . . . . . . . . . . . . . Searches Triggered 1 | . . . . . . . . . . . . . . . . . . . . . . 1 . Data Miner Redirects 7 | . . . . . . . . . . . 4 1 . . . . . . . . . 1 1 Construction Impeded 1 | . . . . . . . . . . . . . 1 . . . . . . . . . . Haulers Reinforced . | . . . . . . . . . . . . . . . . . . . . . . . . Active Scanning Responses . | . . . . . . . . . . . . . . . . . . . . . . . . Cargo Convoy Interrupts . | . . . . . . . . . . . . . . . . . . . . . . . . Stealth | -11 -10 -10 -10 -9 -8 -7 -7 -7 -7 -6 -6 -5 -5 -5 -5 -5 -4 -4 -4 -4 -3 -3 -3 --------- Run | Jun Mat Min Exi Min Mat Fac Low Low Dat Pro Fac Fac Ext Cet Arc Hub Fac Upp Upp Zhi Pro Res Arm Distress Signals 13 | . . . . . 2 . . . . . 1 . 1 1 . 1 . . . . . 1 6 Communications Jammed . | . . . . . . . . . . . . . . . . . . . . . . . . Distress Signals . | . . . . . . . . . . . . . . . . . . . . . . . . Times Spotted 296 | . 2 4 . 4 20 2 6 7 . 11 30 6 35 18 8 17 16 3 18 . 3 33 53 Peak Tracking Total 10 | . 2 3 . 2 6 1 4 7 . 4 4 5 6 6 3 4 3 3 10 . 2 6 10 Tactical Retreats 22 | . . . . 1 6 . 3 . . . 3 1 2 . . . 1 . 2 . . 1 2 Traps | -11 -10 -10 -10 -9 -8 -7 -7 -7 -7 -6 -6 -5 -5 -5 -5 -5 -4 -4 -4 -4 -3 -3 -3 ------- Run | Jun Mat Min Exi Min Mat Fac Low Low Dat Pro Fac Fac Ext Cet Arc Hub Fac Upp Upp Zhi Pro Res Arm Traps Triggered 11 | . . . . . 1 . . . . . 4 1 3 . . . 2 . . . . . . Indirectly . | . . . . . . . . . . . . . . . . . . . . . . . . Trap Hack Attempts . | . . . . . . . . . . . . . . . . . . . . . . . . Triggered . | . . . . . . . . . . . . . . . . . . . . . . . . Disarmed 2 | . . . . . . . . . . . 1 . . . . 1 . . . . . . . Reprogrammed . | . . . . . . . . . . . . . . . . . . . . . . . . Reused . | . . . . . . . . . . . . . . . . . . . . . . . . Traps Extracted . | . . . . . . . . . . . . . . . . . . . . . . . . Installed . | . . . . . . . . . . . . . . . . . . . . . . . . Triggered 1 | . . . . . . . . 1 . . . . . . . . . . . . . . . Most Traps Carried 3 | . . . . 3 3 3 3 3 3 3 3 . . . . . . . . . . . . Machines | -11 -10 -10 -10 -9 -8 -7 -7 -7 -7 -6 -6 -5 -5 -5 -5 -5 -4 -4 -4 -4 -3 -3 -3 ---------- Run | Jun Mat Min Exi Min Mat Fac Low Low Dat Pro Fac Fac Ext Cet Arc Hub Fac Upp Upp Zhi Pro Res Arm Machines Disabled 18 | . 1 . . . . . . 1 . . 2 . 1 . 2 8 . . . . . 2 1 Max in Single Turn 7 | . 1 . . . . . . 1 . . 1 . 1 . . 7 . . . . . 1 1 Garrison Access 3 | . . . . . 1 . . . . . 1 . . . . . . . . . . 1 . Network Hub 1 | . . . . . . . . . . . . . . . . 1 . . . . . . . Machines Repaired . | . . . . . . . . . . . . . . . . . . . . . . . . Machines Sabotaged . | . . . . . . . . . . . . . . . . . . . . . . . . Overloaded Fab Kills . | . . . . . . . . . . . . . . . . . . . . . . . . Hacking | -11 -10 -10 -10 -9 -8 -7 -7 -7 -7 -6 -6 -5 -5 -5 -5 -5 -4 -4 -4 -4 -3 -3 -3 --------- Run | Jun Mat Min Exi Min Mat Fac Low Low Dat Pro Fac Fac Ext Cet Arc Hub Fac Upp Upp Zhi Pro Res Arm Machines Accessed 75 | . 3 . . 1 5 3 . 1 4 . 18 2 6 . . 4 7 . . 6 . 3 12 Terminals 44 | . 3 . . 1 4 2 . 1 . . 11 1 6 . . 4 4 . . . . 1 6 Fabricators 9 | . . . . . . . . . . . 1 1 . . . . 2 . . . . 1 4 Repair Stations 6 | . . . . . . 1 . . . . 2 . . . . . 1 . . . . . 2 Recycling Units 1 | . . . . . . . . . . . 1 . . . . . . . . . . . . Scanalyzers 1 | . . . . . . . . . . . 1 . . . . . . . . . . . . Garrison Access 4 | . . . . . 1 . . . . . 2 . . . . . . . . . . 1 . Total Hacks 288 | . 9 . . 3 10 13 . 2 30 . 57 5 13 . . 11 29 . . 41 . 6 59 Successful 166 | . 4 . . . 5 8 . 2 30 . 31 1 4 . . 6 16 . . 41 . 2 16 Failed 122 | . 5 . . 3 5 5 . . . . 26 4 9 . . 5 13 . . . . 4 43 Catastrophic 24 | . 1 . . . 1 . . . . . 6 . 1 . . . 7 . . . . . 8 Database Lockouts . | . . . . . . . . . . . . . . . . . . . . . . . . Manual 98 | . 5 . 1 3 7 9 . . . . 22 1 5 . . 8 14 . . . . 2 21 Terminals 147 | . 9 . . 3 9 9 . 2 . . 37 2 13 . . 11 19 . . . . 1 32 Fabricators 24 | . . . . . . . . . . . 2 3 . . . . 6 . . . . 2 11 Repair Stations 31 | . . . . . . 4 . . . . 7 . . . . . 4 . . . . . 16 Recycling Units 5 | . . . . . . . . . . . 5 . . . . . . . . . . . . Scanalyzers 2 | . . . . . . . . . . . 2 . . . . . . . . . . . . Garrison Access 8 | . . . . . 1 . . . . . 4 . . . . . . . . . . 3 . Terminal Hacks 111 | . 4 . . . 1 3 . 2 30 . 14 1 3 . . 2 3 . . 41 . 1 6 Record 49 | . . . . . . . . 2 11 . . 1 . . . . . . . 33 . 1 1 Part Schematic 20 | . . . . . . . . . 11 . 3 . 2 . . . . . . 4 . . . Robot Schematic 5 | . . . . . . . . . 5 . . . . . . . . . . . . . . Robot Analysis 13 | . 3 . . . 1 2 . . . . 6 . . . . . . . . . . . 1 Prototype ID Bank 10 | . 1 . . . . . . . 3 . 1 . 1 . . . . . . 4 . . . Branch Access Points 1 | . . . . . . . . . . . . . . . . . 1 . . . . . . Emergency Access Points 2 | . . . . . . . . . . . 2 . . . . . . . . . . . . Repair Station Index 1 | . . . . . . . . . . . . . . . . . 1 . . . . . . Scanalyzer Index 1 | . . . . . . . . . . . . . . . . . . . . . . . 1 Alert Level 1 | . . . . . . . . . . . . . . . . . . . . . . . 1 Unreport Threat 1 | . . . . . . . . . . . . . . . . . . . . . . . 1 Disarm Traps 3 | . . . . . . . . . . . 1 . . . . 2 . . . . . . . Zone Layout 4 | . . . . . . 1 . . . . 1 . . . . . 1 . . . . . 1 Fabricator Hacks 11 | . . . . . . . . . . . 2 . . . . . 6 . . . . . 3 Load Schematic 5 | . . . . . . . . . . . 1 . . . . . 2 . . . . . 2 Build 6 | . . . . . . . . . . . 1 . . . . . 4 . . . . . 1 Repair Station Hacks 11 | . . . . . . 4 . . . . 2 . . . . . 2 . . . . . 3 Scan Component 7 | . . . . . . 2 . . . . 2 . . . . . 1 . . . . . 2 Repair 4 | . . . . . . 2 . . . . . . . . . . 1 . . . . . 1 Recycling Unit Hacks 3 | . . . . . . . . . . . 3 . . . . . . . . . . . . Process 1 | . . . . . . . . . . . 1 . . . . . . . . . . . . Report Inventory 1 | . . . . . . . . . . . 1 . . . . . . . . . . . . Retrieve Matter 1 | . . . . . . . . . . . 1 . . . . . . . . . . . . Scanalyzer 2 | . . . . . . . . . . . 2 . . . . . . . . . . . . Insert Component 1 | . . . . . . . . . . . 1 . . . . . . . . . . . . Analyze 1 | . . . . . . . . . . . 1 . . . . . . . . . . . . Garrison Access Hacks 2 | . . . . . 1 . . . . . 1 . . . . . . . . . . . . Seal Access 2 | . . . . . 1 . . . . . 1 . . . . . . . . . . . . Unauthorized Hacks 26 | . . . . . 3 1 . . . . 7 . 1 . . 4 5 . . . . 1 4 Terminals 25 | . . . . . 3 1 . . . . 7 . 1 . . 4 5 . . . . . 4 Track 1 | . . . . . . . . . . . . . . . . . 1 . . . . . . Assimilate 10 | . . . . . 1 . . . . . 3 . . . . 4 . . . . . . 2 Botnet 12 | . . . . . 2 1 . . . . 3 . 1 . . . 3 . . . . . 2 Operators 2 | . . . . . . . . . . . 1 . . . . . 1 . . . . . . Fabricators 1 | . . . . . . . . . . . . . . . . . . . . . . 1 . Recompile 1 | . . . . . . . . . . . . . . . . . . . . . . 1 . Repair Stations . | . . . . . . . . . . . . . . . . . . . . . . . . Recycling Units . | . . . . . . . . . . . . . . . . . . . . . . . . Scanalyzers . | . . . . . . . . . . . . . . . . . . . . . . . . Garrison Access . | . . . . . . . . . . . . . . . . . . . . . . . . Data Cores Recovered 1 | . . . . . . . . . . . . . . . . . 1 . . . . . . Used 1 | . . . . . . . . . . . . . . . . . 1 . . . . . . Hacking Detections 59 | . 3 . . 1 4 3 . 1 . . 17 2 6 . . 4 6 . . . . 3 9 Full Trace Events 11 | . . . . . . . . . . . 4 1 . . . 1 2 . . . . 1 2 Feedback Events 4 | . . . . . . . . . . . 1 . . . . 1 1 . . . . . 1 Corruption 3 | . . . . . . . . . . . 1 . . . . . 1 . . . . . 1 Hackware Fried 1 | . . . . . . . . . . . . . . . . 1 . . . . . . . Feedback Blocked . | . . . . . . . . . . . . . . . . . . . . . . . . Robot Schematics Acquired 5 | . . . . . . . . . 5 . . . . . . . . . . . . . . Robots Built . | . . . . . . . . . . . . . . . . . . . . . . . . Authchips . | . . . . . . . . . . . . . . . . . . . . . . . . Time . | . . . . . . . . . . . . . . . . . . . . . . . . Total Robot Build Rating . | . . . . . . . . . . . . . . . . . . . . . . . . Part Schematics Acquired 21 | . . . . . . . . . 11 . 4 . 2 . . . . . . 4 . . . Parts Built 7 | . . . . . . . . . . . 1 . . . . . 4 . . . . . 2 Authchips 2 | . . . . . . . . . . . . . . . . . 1 . . . . . 1 Time 553 | . . . . . . . . . . . 50 . . . . . 468 . . . . . 35 Total Part Build Rating 50 | . . . . . . . . . . . 5 . . . . . 33 . . . . . 12 Parts Repaired 4 | . . . . . . 2 . . . . . . . . . . 1 . . . . . 1 Time 144 | . . . . . . 62 . . . . . . . . . . 54 . . . . . 28 Parts Recycled . | . . . . . . . . . . . . . . . . . . . . . . . . Recycled Matter 70 | . . . . . . . . . . . 70 . . . . . . . . . . . . Retrieved Matter 70 | . . . . . . . . . . . 70 . . . . . . . . . . . . Retrieved Components . | . . . . . . . . . . . . . . . . . . . . . . . . Parts Scanalyzed 1 | . . . . . . . . . . . 1 . . . . . . . . . . . . Part Schematics Acquired 1 | . . . . . . . . . . . 1 . . . . . . . . . . . . Parts Damaged . | . . . . . . . . . . . . . . . . . . . . . . . . Bothacking | -11 -10 -10 -10 -9 -8 -7 -7 -7 -7 -6 -6 -5 -5 -5 -5 -5 -4 -4 -4 -4 -3 -3 -3 ------------ Run | Jun Mat Min Exi Min Mat Fac Low Low Dat Pro Fac Fac Ext Cet Arc Hub Fac Upp Upp Zhi Pro Res Arm Used RIF Installer . | . . . . . . . . . . . . . . . . . . . . . . . . Robots Hacked . | . . . . . . . . . . . . . . . . . . . . . . . . Non-combat . | . . . . . . . . . . . . . . . . . . . . . . . . Combat . | . . . . . . . . . . . . . . . . . . . . . . . . Robot Hacks Applied . | . . . . . . . . . . . . . . . . . . . . . . . . Relay Couplers Released 3 | . . . . . . . . . . . . . . . . . . . . . . 3 . Machine Destruction 3 | . . . . . . . . . . . . . . . . . . . . . . 3 . Fabnet Peak Effective % . | . . . . . . . . . . . . . . . . . . . . . . . . Robots Rewired 21 | . . . . . . . . . . . . . 15 . . . . . 2 . . . 4 Allies Hacked 2 | . . . . . . . . . . . . . . . . . . . . . . . 2 Hacks Repelled . | . . . . . . . . . . . . . . . . . . . . . . . . Allies | -11 -10 -10 -10 -9 -8 -7 -7 -7 -7 -6 -6 -5 -5 -5 -5 -5 -4 -4 -4 -4 -3 -3 -3 -------- Run | Jun Mat Min Exi Min Mat Fac Low Low Dat Pro Fac Fac Ext Cet Arc Hub Fac Upp Upp Zhi Pro Res Arm Total Allies 37 | . . . . . 1 . . . . 1 . . 27 . . 1 . . 2 . . . 5 Largest Group 15 | . . . . . 1 . . . . 1 1 . 15 11 3 3 . . 2 2 2 2 5 Highest-Rated Group 405 | . . . . . 10 . . . . 96 96 . 405 312 90 77 . . 77 77 77 77 382 Highest-Rated Ally 159 | . . . . . 10 . . . . 96 96 . 159 39 39 31 . . 47 47 47 47 89 Total Orders . | . . . . . . . . . . . . . . . . . . . . . . . . Ally Attacks 314 | . . . . . . . . . . 7 23 . 141 67 33 3 . . . . 4 14 22 Total Damage 6853 | . . . . . . . . . . 191 1053 . 3059 1185 638 75 . . . . 96 372 184 Kills 55 | . . . . . . . . . . 3 8 . 23 13 4 1 . . . . 1 1 1 Allies Corrupted 2 | . . . . . . . . . . . . . . . . . . . . . . . 2 Allies Melted . | . . . . . . . . . . . . . . . . . . . . . . . . Intel | -11 -10 -10 -10 -9 -8 -7 -7 -7 -7 -6 -6 -5 -5 -5 -5 -5 -4 -4 -4 -4 -3 -3 -3 ------- Run | Jun Mat Min Exi Min Mat Fac Low Low Dat Pro Fac Fac Ext Cet Arc Hub Fac Upp Upp Zhi Pro Res Arm Robot Analysis Total 13 | . 3 . . . 1 2 . . . . 6 . . . . . . . . . . . 1 Derelict Logs Recovered 7 | . . 1 . 2 . . . 1 . 1 . . . . . . . . 2 . . . . Drone Launches . | . . . . . . . . . . . . . . . . . . . . . . . . Drone Recoveries . | . . . . . . . . . . . . . . . . . . . . . . . . Exploration | -11 -10 -10 -10 -9 -8 -7 -7 -7 -7 -6 -6 -5 -5 -5 -5 -5 -4 -4 -4 -4 -3 -3 -3 ------------- Run | Jun Mat Min Exi Min Mat Fac Low Low Dat Pro Fac Fac Ext Cet Arc Hub Fac Upp Upp Zhi Pro Res Arm Turns Passed 18595 | 75 254 1274 546 658 921 829 452 345 106 413 2166 254 1324 309 883 845 1913 642 769 466 457 972 1722 Spaces Moved 10213 | 50 163 590 280 306 446 289 415 324 107 332 1248 163 648 216 445 456 947 368 386 229 319 536 950 Core 4 | 1 . . . . . . . . . . . . . . . . . . . . . . 3 Treads 3042 | . . . . . 337 229 . . . . . . 5 . 239 456 947 368 307 . . 4 150 Legs 3698 | . 104 590 280 306 109 3 . . . 7 416 . 115 216 206 . . . 2 . 15 532 797 Wheels 3469 | 49 59 . . . . 57 415 324 107 325 832 163 528 . . . . . 77 229 304 . . Hover . | . . . . . . . . . . . . . . . . . . . . . . . . Flight . | . . . . . . . . . . . . . . . . . . . . . . . . Fastest Speed 50 | 50 90 190 120 190 120 100 100 100 100 100 90 115 120 120 100 160 160 160 160 136 120 100 50 Average Speed 142 | 89 112 190 189 190 159 231 100 100 100 103 108 124 133 120 166 160 160 166 172 185 135 119 118 Slowest Speed 1000 | 100 190 190 190 190 330 400 100 100 100 260 330 130 400 120 330 160 160 240 400 210 136 260 1000 Overloaded Moves . | . . . . . . . . . . . . . . . . . . . . . . . . Propulsion Burnouts . | . . . . . . . . . . . . . . . . . . . . . . . . Robots Hopped . | . . . . . . . . . . . . . . . . . . . . . . . . Cave-ins Triggered 1 | . . . . . . . . . . . . . . . . . . . . . . . 1 Teleports 1 | . . . . . . . . . . . . . . . . . . . . 1 . . . Exploration Rate (%) 47 | 4 19 88 61 68 32 7 64 54 68 52 29 5 78 60 94 35 14 64 65 63 60 10 51 Regions Visited 23 Branch Regions 16 Pre-discovered Areas 7 | . . 1 . 1 . . . 1 1 . . . . . . . . . . 3 . . . Known Exits Taken 3 | . . . . . 1 . . . . . 1 . . . . . 1 . . . . . . Unknown Exits Taken 20 | 1 1 1 1 1 . 1 1 1 1 1 . 1 1 1 1 1 . 1 1 1 1 1 . Scrap Searched 16 | . . 1 . 3 . . 2 2 . 4 . . . . . . . 2 1 . 1 . . Spaces Dug 22 | . . . . . 10 . . . . . 2 . . . . . . . . . . 2 8 Terrain Destroyed 290 | . 6 4 . 18 44 . . 7 . 17 2 . . . . 182 . . . . . 2 8 Melee 12 | . . . . . . . . . . . 2 . . . . . . . . . . 2 8 Projectile . | . . . . . . . . . . . . . . . . . . . . . . . . AOE 278 | . 6 4 . 18 44 . . 7 . 17 . . . . . 182 . . . . . . . Terrain Rammed . | . . . . . . . . . . . . . . . . . . . . . . . . Walls Destroyed . | . . . . . . . . . . . . . . . . . . . . . . . . Machines Disabled . | . . . . . . . . . . . . . . . . . . . . . . . . Actions | -11 -10 -10 -10 -9 -8 -7 -7 -7 -7 -6 -6 -5 -5 -5 -5 -5 -4 -4 -4 -4 -3 -3 -3 --------- Run | Jun Mat Min Exi Min Mat Fac Low Low Dat Pro Fac Fac Ext Cet Arc Hub Fac Upp Upp Zhi Pro Res Arm Total 13184 | 69 221 711 296 349 582 424 436 333 106 382 1953 202 1049 254 552 523 1259 382 439 256 328 736 1342 Wait 1429 | . 12 101 . 6 62 75 2 . . 29 523 27 45 3 42 11 242 1 11 . . 64 173 Move 10190 | 49 162 589 279 305 445 288 414 323 106 331 1247 162 647 215 444 455 946 367 385 228 318 535 950 Hop . | . . . . . . . . . . . . . . . . . . . . . . . . Pick Up 148 | 7 11 3 1 5 7 10 3 . . 3 26 2 19 3 12 5 8 . 2 3 1 9 8 Fast Attach 171 | 7 2 1 5 3 8 10 . . . 1 22 . 14 2 11 10 7 2 5 9 . 17 35 Attach 85 | 1 2 . . 1 4 3 1 . . . 12 2 7 1 12 1 3 2 5 . . 9 19 Detach 19 | 1 2 . . . . 1 1 . . . 4 . . . 3 . . . . . . 3 4 Swap 123 | . 4 . 4 2 7 4 3 2 . 5 22 1 16 10 5 5 5 2 5 3 2 10 6 Drop 187 | . 14 1 7 3 5 17 3 . . 3 28 . 31 11 8 13 8 1 1 8 1 18 6 Fire 92 | 4 12 16 . 24 12 . . 5 . 2 . . 5 5 . 2 1 . 4 . . . . Melee 448 | . . . . . 32 16 9 3 . 8 69 8 31 4 15 21 39 7 14 5 6 68 93 Ram . | . . . . . . . . . . . . . . . . . . . . . . . . Kick 5 | . . . . . . . . . . . . . 2 . . . . . . . . 3 . Crush . | . . . . . . . . . . . . . . . . . . . . . . . . Escape Stasis 13 | . . . . . . . . . . . . . 13 . . . . . . . . . . Rewire 274 | . . . . . . . . . . . . . 219 . . . . . 7 . . . 48 Trap . | . . . . . . . . . . . . . . . . . . . . . . . . Miscellaneous . | . . . . . . . . . . . . . . . . . . . . . . . . Route ------- -11/Junkyard -10/Materials -10/Mines (discovered 2 exits: [*Mat] / *Exi) -10/Exiles -9/Mines -8/Materials (discovered 2 exits: *Fac x2) -7/Factory -7/Lower Caves -7/Lower Caves -7/Data Miner -6/Proximity Caves -6/Factory (discovered 2 exits: *Fac / Low) -5/Factory -5/Extension (discovered 2 exits: *Fac / *Cet) -5/Cetus (discovered 2 exits: *Fac / [*Arc]) -5/Archives (discovered 3 exits: *Fac / *Hub x2) -5/Hub_04(d) -4/Factory (discovered 3 exits: *Res / *Upp x2) -4/Upper Caves -4/Upper Caves (discovered 2 exits: *Res / *Zhi) -4/Zhirov -3/Proximity Caves -3/Research (discovered 3 exits: *Arm / Qua x2) -3/Armory (discovered 1 exit: [*Res]) History --------- Turn | Location | Event 17 | -11/Junkyard | Discovered new exit (range 13) 76 | -11/Junkyard | Entered Materials 76 | -10/Materials | Discovered new exit (range 7) 305 | -10/Materials | Build established: Mutant 330 | -10/Materials | Entered Mines 661 | -10/Mines | Learned location of Storage (-8) 685 | -10/Mines | Assembled infested the area 690 | -10/Mines | Assisted by a Guerilla fighting off Assembled 708 | -10/Mines | Found a damaged Exp. Sensor Array with a note attached 711 | -10/Mines | Found Prototype Device 1126 | -10/Mines | Discovered new exit (range 4) 1353 | -10/Mines | Deemed a non-threat by the Exiles lab entrance 1353 | -10/Mines | Discovered new exit (range 5) 1604 | -10/Mines | Entered Exiles 1650 | -10/Exiles | Met 8R-AWN 1684 | -10/Exiles | Met EX-HEX 1737 | -10/Exiles | Met EX-BIN 1785 | -10/Exiles | Aligned with FarCom system 1787 | -10/Exiles | Given EX-Vault access code 1831 | -10/Exiles | Opened EX-Vault 1839 | -10/Exiles | Found Prototype Device 1839 | -10/Exiles | Identified Skeleton Box 1844 | -10/Exiles | Found Prototype Device 1844 | -10/Exiles | Identified Trap Reconfigurator 1857 | -10/Exiles | Found Prototype Slashing Weapon 1857 | -10/Exiles | Identified Longsword +1 1865 | -10/Exiles | Identified Exp. Sensor Array 1968 | -10/Exiles | Warned to stay clear of 0b10 Research branches 2021 | -10/Exiles | Met EX-DEC 2125 | -10/Exiles | Discovered new exit (range 11) 2150 | -10/Exiles | Left Exiles lab with Skeleton Box 2150 | -10/Exiles | Entered Mines 2388 | -9/Mines | Found a hidden stash of uninstalled traps 2791 | -9/Mines | Discovered new exit (range 8) 2808 | -9/Mines | Entered Materials 2808 | -8/Materials | Evolved 4 slots: Propulsion x2, Utility x2 2809 | -8/Materials | Identified exit to Factory 2900 | -8/Materials | Garrison activated, responded to threat 2952 | -8/Materials | Lost 5 parts (1p1n1u2w) 3362 | -8/Materials | Build established: Scavenger-Assassin 3461 | -8/Materials | Discovered exit to Factory (range 10) 3729 | -8/Materials | Entered Factory 3729 | -7/Factory | Evolved 2 slots: Propulsion x1, Utility x1 3908 | -7/Factory | Build established: Assassin 4051 | -7/Factory | Discovered new exit (range 8) 4315 | -7/Factory | Repaired Broken Lgt. Treads 4344 | -7/Factory | Repaired Aluminum Leg 4558 | -7/Factory | Entered Lower Caves 4596 | -7/Lower Caves | Encountered a Warlord checkpoint 4780 | -7/Lower Caves | Spotted B-75 Beast 4816 | -7/Lower Caves | Build established: Mutant 5000 | -7/Lower Caves | Discovered new exit (range 5) 5010 | -7/Lower Caves | Entered another Lower Caves area 5100 | -7/Lower Caves | Attracted the attention of an 0b10 base 5122 | -7/Lower Caves | Learned Research emergency access door positions 5131 | -7/Lower Caves | Destroyed 7 combat bots 5174 | -7/Lower Caves | Encountered a Warlord checkpoint 5348 | -7/Lower Caves | Discovered new exit (range 8) 5355 | -7/Lower Caves | Entered Data Miner 5355 | -7/Data Miner | Discovered new exit (range 6) 5374 | -7/Data Miner | Met Data Miner 5394 | -7/Data Miner | Learned location of Section 7 (-2) 5394 | -7/Data Miner | Acquired the access code to Warlord's prototype stash 5411 | -7/Data Miner | Received God Mode back door access code from Data Miner 5461 | -7/Data Miner | Entered Proximity Caves 5539 | -6/Proximity Caves | Attracted the attention of an 0b10 checkpoint 5761 | -6/Proximity Caves | Learned location of 2 exits from Factory 5830 | -6/Proximity Caves | Escorted by Enhanced Grunt 5856 | -6/Proximity Caves | Discovered new exit (range 16) 5874 | -6/Proximity Caves | Entered Factory 5874 | -6/Factory | Accompanied by 1 ally 5874 | -6/Factory | Evolved 2 slots: Utility x1, Weapon x1 5875 | -6/Factory | Identified exit to Lower Caves 5875 | -6/Factory | Identified exit to Factory 6018 | -6/Factory | Lost 3 parts (1p2u) 6076 | -6/Factory | Incoming investigation squad redirected 6106 | -6/Factory | Fabricated Lgt. Regenerative Plating? 6230 | -6/Factory | Incoming investigation squad redirected 6544 | -6/Factory | Build established: Hacker-Mutant 6688 | -6/Factory | Found Prototype Device 6688 | -6/Factory | Identified Exp. Thermal Shield 7050 | -6/Factory | Build established: Mutant 7069 | -6/Factory | Garrison activated, responded to threat 7174 | -6/Factory | Incoming investigation squad redirected 7178 | -6/Factory | Incoming investigation squad redirected 7563 | -6/Factory | Garrison activated, responded to threat 7640 | -6/Factory | Spotted B-75 Beast 8040 | -6/Factory | Entered another Factory area 8040 | -5/Factory | Evolved 2 slots: Power x1, Utility x1 8073 | -5/Factory | Incoming investigation squad redirected 8282 | -5/Factory | Discovered new exit (range 11) 8294 | -5/Factory | Entered Extension 8508 | -5/Extension | Rescued a captive Derelict 8538 | -5/Extension | Rescued a captive Derelict 8661 | -5/Extension | Rescued a captive Derelict 8672 | -5/Extension | Rescued A7 8696 | -5/Extension | Spotted B-75 Beast 8707 | -5/Extension | Spotted B-75 Beast 8784 | -5/Extension | Lost 3 parts (3n) 8878 | -5/Extension | System corruption reached 10% 9047 | -5/Extension | Rescued a captive Derelict 9049 | -5/Extension | Rescued a captive Derelict 9100 | -5/Extension | Rescued a captive Derelict 9101 | -5/Extension | Rescued a captive Derelict 9108 | -5/Extension | Rescued a captive Derelict 9108 | -5/Extension | Rescued a captive Derelict 9146 | -5/Extension | Rescued a captive Derelict 9149 | -5/Extension | Rescued a captive Derelict 9173 | -5/Extension | Build established: Commander-Mutant 9535 | -5/Extension | Discovered new exit (range 10) 9537 | -5/Extension | Discovered new exit (range 6) 9557 | -5/Extension | Disrupted transfer network 9618 | -5/Extension | Entered Cetus 9618 | -5/Cetus | Accompanied by 11 allies 9629 | -5/Cetus | Build established: Scavenger-Mutant 9632 | -5/Cetus | Spotted Cetus Guard 9632 | -5/Cetus | Spotted Cetus Guard 9632 | -5/Cetus | Spotted Cetus Guard 9632 | -5/Cetus | Spotted Cetus Guard 9652 | -5/Cetus | Destroyed Cetus Guard 9653 | -5/Cetus | Allies destroyed Cetus Guard 9656 | -5/Cetus | Allies destroyed Cetus Guard 9658 | -5/Cetus | Allies destroyed Cetus Guard 9750 | -5/Cetus | Discovered new exit (range 22) 9774 | -5/Cetus | Spotted Cetus Guard 9775 | -5/Cetus | Spotted Cetus Guard 9780 | -5/Cetus | Spotted Cetus Guard 9780 | -5/Cetus | Discovered new exit (range 22) 9784 | -5/Cetus | Spotted Cetus Guard 9794 | -5/Cetus | Destroyed Cetus Guard 9794 | -5/Cetus | Destroyed Cetus Guard 9795 | -5/Cetus | Destroyed Cetus Guard 9797 | -5/Cetus | Allies destroyed Cetus Guard 9805 | -5/Cetus | Met Revision 17 9927 | -5/Cetus | Entered Archives 9927 | -5/Archives | Accompanied by 3 allies 9958 | -5/Archives | Discovered new exit (range 14) 10015 | -5/Archives | Lost 10 parts (2p5n1u2w) 10098 | -5/Archives | Discovered new exit (range 21) 10115 | -5/Archives | Discovered new exit (range 22) 10810 | -5/Archives | Entered Hub_04(d) 10810 | -5/Hub_04(d) | Accompanied by 2 allies 11034 | -5/Hub_04(d) | Discovered new exit (range 12) 11115 | -5/Hub_04(d) | Adv. Hacking Suite fried by hacking feedback 11503 | -5/Hub_04(d) | Network Hub disabled 11655 | -5/Hub_04(d) | Entered Factory 11655 | -4/Factory | Evolved 2 slots: Utility x1, Weapon x1 11811 | -4/Factory | Discovered new exit (range 6) 11878 | -4/Factory | Fabricated Quantum Reactor? 12216 | -4/Factory | Fabricated Enh. Force Lance? 12339 | -4/Factory | Discovered new exit (range 19) 12344 | -4/Factory | Identified exit to Upper Caves 12496 | -4/Factory | Fabricated Adv. Actuator Array? 13115 | -4/Factory | Repaired Centrium Medium Armor Plating 13568 | -4/Factory | Entered Upper Caves 13699 | -4/Upper Caves | Attracted the attention of an 0b10 checkpoint 14045 | -4/Upper Caves | Discovered new exit (range 6) 14056 | -4/Upper Caves | Encountered a Warlord checkpoint 14210 | -4/Upper Caves | Entered another Upper Caves area 14246 | -4/Upper Caves | Discovered new exit (range 19) 14449 | -4/Upper Caves | Learned 8 Research zone layouts 14679 | -4/Upper Caves | Attracted the attention of an 0b10 checkpoint 14702 | -4/Upper Caves | Attracted the attention of an 0b10 outpost 14785 | -4/Upper Caves | Lost 7 parts (5n2u) 14789 | -4/Upper Caves | Destroyed 8 combat bots 14791 | -4/Upper Caves | System corruption reached 10% 14920 | -4/Upper Caves | Discovered new exit (range 5) 14947 | -4/Upper Caves | Learned Research stockpile data 14979 | -4/Upper Caves | Entered Zhirov 14979 | -4/Zhirov | Accompanied by 2 allies 14979 | -4/Zhirov | Discovered new exit (range 3) 15017 | -4/Zhirov | Met Zhirov 15084 | -4/Zhirov | Learned location of Quarantine (-3) 15084 | -4/Zhirov | Learned location of Testing (-2) 15084 | -4/Zhirov | Learned location of Command (-1) 15103 | -4/Zhirov | Zhirov requested help retrieving the SGEMP Prototype 15135 | -4/Zhirov | Found Alien Artifact 15136 | -4/Zhirov | Identified Transdimensional Reconstructor 15136 | -4/Zhirov | Warped through subspace 15230 | -4/Zhirov | Found Alien Artifact 15230 | -4/Zhirov | Identified Integrated Reactor 15230 | -4/Zhirov | Installed Integrated Reactor, increased core energy generation (+10) 15445 | -4/Zhirov | Entered Proximity Caves 15445 | -3/Proximity Caves | Accompanied by 2 allies 15447 | -3/Proximity Caves | Spotter reported a threat 15448 | -3/Proximity Caves | Spotter reported a threat 15630 | -3/Proximity Caves | Spotted B-86 Titan 15874 | -3/Proximity Caves | Discovered new exit (range 14) 15884 | -3/Proximity Caves | System corruption reached 30% 15902 | -3/Proximity Caves | Entered Research 15902 | -3/Research | Accompanied by 2 allies 15902 | -3/Research | Evolved 2 slots: Propulsion x1, Utility x1 15903 | -3/Research | Identified exit to Quarantine 16080 | -3/Research | Incoming investigation squad redirected 16152 | -3/Research | Search patrols dispatched 16301 | -3/Research | Discovered new exit (range 4) 16652 | -3/Research | First assault squad dispatched 16710 | -3/Research | System corruption reached 10% 16766 | -3/Research | Lost 12 parts (2p3n6u1w) 16874 | -3/Research | Entered Armory 17052 | -3/Armory | Build established: Mutant 17109 | -3/Armory | Found Fusion Bomb Launcher 17125 | -3/Armory | Fabricated Lance? 17518 | -3/Armory | Build established: Commander-Mutant 17536 | -3/Armory | P-80 Master assimilated allied Electro 8d 17537 | -3/Armory | Incoming investigation squad redirected 17566 | -3/Armory | P-80 Master assimilated allied Administrator 8a 17605 | -3/Armory | Lost 6 parts (1p1n3u1w) 17659 | -3/Armory | Lost 5 parts (1n3u1w) 17668 | -3/Armory | Destroyed 10 combat bots 17820 | -3/Armory | Build established: Hacker-Mutant 17969 | -3/Armory | Lost 3 parts (2n1u) 18220 | -3/Armory | Lost 14 parts (3p5n4u2w) 18241 | -3/Armory | Repaired Broken Adv. Actuator Array 18264 | -3/Armory | Core integrity fell below 50% 18435 | -3/Armory | Crushed by falling debris 18435 | -3/Armory | System corruption reached 30% 18563 | -3/Armory | Core integrity fell below 20% 18569 | -3/Armory | Lost 3 parts (1n1u1w) 18587 | -3/Armory | Discovered new exit (range 3) 18593 | -3/Armory | Released all parts (7) 18596 | -3/Armory | Destroyed by X-82 Rainmaker with Heavy Flak Cannon Last Messages --------------- 18560_ System corrupted: Component data lost. 18565_ Knocked back. 18579_ System corrupted: Matter fused (-7). 18583_ Myomer Leg destroyed. 18587_ Knocked back. 18587_ EXIT=FOUND 18587_ Knocked back. 18593_ Released Force Lance. 18593_ Released Adv. Actuator Array. 18593_ Released Adv. Target Analyzer. 18593_ Released Imp. Melee Analysis Suite. 18593_ Released System Shield. 18593_ Released Hcp. Storage Unit. 18593_ Released Force Lance. 18593_ Acquired Force Lance. 18593_ Force Lance destroyed. 18594_ Penetrated by Slug. 18594_ Slug penetrates Y-72 Warden. 18594_ Knocked back. 18595_ System corrupted: Matter fused (-8). Map ----- +----------------------------------------------------+ | | | | | | | | | | | | | | | | | | | | | | | ?????????????????????????????????????????????????? | | ?????????????????????????????????????????????????? | | ?????????????????????????????????????????????????? | | ?????????????????????????????????????????????????? | | ?????????????????????????????????????????????????? | | ?????????????????????????????????????????????????? | | ????????????????????????##+#?????????????????????? | | ????????????????????????# ?????????????????????? | | ???????????????????????? #?????????????????????? | | ????????????????????????# #?????????????????????? | | ????????????????????????# #?????????????????????? | | ???????????????????????## ##???????????????#+##+# | | ???????????????????????#]!] #???????????????# # | | ???????????????????????#Y !Y#???????????##### # | | ?????????????????????####@/####????????? # | | ?????????????????????# #????????? # | | ?????????????????????# < #????????? # | | ?????????s???????????#! #????????? | | ????"T???????????????####x/####?????????????# | | ????""???s?????????????# x #???????????????# | | ??????????ss???????????# xx #???##########??# | | ????????????############# ##???# #### | | ????????????# # #????# """ # "" | | ????????????# # ###### """ #""" | | ????????????# w """"" + %#% """ #"F | | ????????????# """"" # *%+% #""" ] | | ????????????# """"" #"" =#="F "" #""" | | ????????????# #"F # """"" #""" | | ????????????# #""" # """"" #### | | ????????????#######+#####""" #=![ + | | ?????????????# ## ##+############### | | ?????????????#* # # [ ^ # | | ?????????????# ! + # ! """ """ # | | ????????????## """ # " " # ! ! " """ # | | ????????????#" " " """ # """ # !!! "" # | | ????????????## "T" """ # """ # # | | ?????????????# """ # # | | ?????????????# # # # | | ????############/####### """ # | +----------------------------------------------------+ Best States ------------- Heat Dissipation 46 Energy Generation 51 Energy Capacity 600 Matter Stores 300 Matter Capacity 300 Sight Range 22 Robot Scan Range 20 Terrain Scan Range 16 Terrain Scan Density 210 Cloak Strength 4 Corruption Containment 8 Corruption Block 15 Armor Coverage 900 Resistance: KI 20 Resistance: TH 30 Core Shielding 40 Propulsion Shielding 66 Melee Speed Boost 20 Phase Shifting 10 Evasion (%) 60 Melee Accuracy 12 Target Analysis 8 Armor Integrity Analysis 30 Recoil Reduction 6 Offensive Hacking 26 Defensive Hacking 20 Authchip Count 1 Trap Extractor Capacity 6 Item Schematics ----------------- Combat Drone Bay | -7/Data Miner | Free Lgt. Regenerative Plating | -7/Data Miner | Free Biomechanical Wings | -7/Data Miner | Free Gravity Neutralizer | -7/Data Miner | Free Antimatter Cannon | -7/Data Miner | Free Field Propulsion Drive | -7/Data Miner | Free Imp. Recalibrator | -7/Data Miner | Free Lance | -7/Data Miner | Free Neutrino Core | -7/Data Miner | Free Lrn. Sensor Array | -7/Data Miner | Free Quantum Capacitor | -7/Data Miner | Free Imp. VSS Leg | -6/Factory | Scanalyzed Adv. Actuator Array | -6/Factory | Hacked Hvy. Pick | -6/Factory | Hacked Lyr. Medium Armor Plating | -6/Factory | Hacked Graphene Brace | -5/Extension | Hacked Powered Armor | -5/Extension | Hacked Assault Drone Bay | -4/Zhirov | Free Exp. Heat Sink | -4/Zhirov | Free Exp. Optical Array | -4/Zhirov | Free Imp. Arc Thrower | -4/Zhirov | Free Robot Schematics ------------------ H-55 Commando | -7/Data Miner | Free L-41 Fighter | -7/Data Miner | Free B-48 Gladiator | -7/Data Miner | Free O-24 Administrator | -7/Data Miner | Free G-50 Soldier | -7/Data Miner | Free Fabricated ------------ Lgt. Regenerative Plating | x1 | -6/Factory Quantum Reactor | x2 | -4/Factory | Preloaded Enh. Force Lance | x1 | -4/Factory | Preloaded Adv. Actuator Array | x1 | -4/Factory Lance | x2 | -3/Armory | Authchip Alien Tech Used ----------------- Transdimensional Reconstructor Integrated Reactor Achievements -------------- None Challenges ------------ None Game ------ Seed IonicNodeStorm Manual? 0 Play Time 03:13:00 Cumulative 84.8 hours Start 2023.11.26 @ 20:39:59 End 2023.11.27 @ 00:34:30 Sessions 1 Manual Loads 0 Difficulty Rogue Special Mode None Game No. 71 Rogue 68 Adventurer 3 Explorer 0 Win Type - Total 0 Types 0/0/0/0/0/0/0/0/0 Lore% 57 Gallery% 60 Achievement% 48 Wizard Run 0 Options --------- ASCII 0 Keyboard 0 Movement Mouse Keybinds 0 Fullscreen 2 Font 18/SmallcapsGlow Map View 76x50 Tactical HUD 1 Map Filters NONE Filters NONE Steam 1 RUN: 670625bb-1bc3-45c9-aee6-db4999ae4908